[Event "Late-Titled-Tuesday-Blitz-February-06-2024"]
[Site "Chess.com"]
[Date "2024.02.06"]
[Round "1"]
[White "OparinGrigoriy"]
[Black "Escanor89"]
[Result "1-0"]
[WhiteElo "3002"]
[BlackElo "2515"]
[TimeControl "180+1"]
[EndTime "14:05:20 PST"]
[Termination "OparinGrigoriy won by resignation"]

1. a3 {[%clk 0:03:00.9]} 1... d5 {[%clk 0:02:57.6]} 2. Nf3 {[%clk 0:03:00.2]}
2... Nf6 {[%clk 0:02:57.1]} 3. e3 {[%clk 0:03:00.9]} 3... Bg4 {[%clk 0:02:54.2]}
4. h3 {[%clk 0:03:00.3]} 4... Bxf3 {[%clk 0:02:52.9]} 5. Qxf3 {[%clk 0:03:01.2]}
5... c6 {[%clk 0:02:53.2]} 6. b4 {[%clk 0:02:58.8]} 6... Nbd7 {[%clk 0:02:52.7]}
7. Bb2 {[%clk 0:02:59.3]} 7... e5 {[%clk 0:02:46.2]} 8. c4 {[%clk 0:02:59.6]}
8... Bd6 {[%clk 0:02:43.7]} 9. cxd5 {[%clk 0:02:58.9]} 9... cxd5 {[%clk
0:02:43.7]} 10. Nc3 {[%clk 0:02:59.5]} 10... e4 {[%clk 0:02:37.7]} 11. Qd1
{[%clk 0:02:59.6]} 11... O-O {[%clk 0:02:34.6]} 12. Be2 {[%clk 0:02:56.6]} 12...
Ne5 {[%clk 0:02:17]} 13. Nb5 {[%clk 0:02:53]} 13... Bb8 {[%clk 0:02:15.6]} 14.
Rc1 {[%clk 0:02:45.3]} 14... a5 {[%clk 0:02:10.1]} 15. O-O {[%clk 0:02:42]}
15... axb4 {[%clk 0:02:09.5]} 16. axb4 {[%clk 0:02:42.6]} 16... Qe7 {[%clk
0:02:07.8]} 17. Qb3 {[%clk 0:02:41.7]} 17... Rd8 {[%clk 0:02:03.9]} 18. Rc2
{[%clk 0:02:41.2]} 18... Nc6 {[%clk 0:01:52.5]} 19. Rc5 {[%clk 0:02:30.2]} 19...
Be5 {[%clk 0:01:46.8]} 20. Rfc1 {[%clk 0:02:29.1]} 20... Bxb2 {[%clk 0:01:45.8]}
21. Qxb2 {[%clk 0:02:30]} 21... Rd7 {[%clk 0:01:27.4]} 22. Nd4 {[%clk
0:02:26.5]} 22... Nxd4 {[%clk 0:01:19.5]} 23. Qxd4 {[%clk 0:02:27.4]} 23... Rad8
{[%clk 0:01:19.2]} 24. b5 {[%clk 0:02:27]} 24... h6 {[%clk 0:01:16.6]} 25. b6
{[%clk 0:02:26.8]} 25... Qd6 {[%clk 0:01:10.2]} 26. Rc7 {[%clk 0:02:26.8]} 26...
Ne8 {[%clk 0:01:07.5]} 27. R7c2 {[%clk 0:02:21.1]} 27... Re7 {[%clk 0:01:04.8]}
28. Bb5 {[%clk 0:02:19.6]} 28... Nf6 {[%clk 0:01:04.3]} 29. Rc7 {[%clk
0:02:18.9]} 29... Ne8 {[%clk 0:00:54.6]} 30. Bxe8 {[%clk 0:02:18.2]} 30... Rdxe8
{[%clk 0:00:54.7]} 31. R1c5 {[%clk 0:01:59.8]} 31... Rd8 {[%clk 0:00:54.1]} 32.
Rxe7 {[%clk 0:01:58.7]} 32... Qxe7 {[%clk 0:00:51.5]} 33. Rxd5 {[%clk
0:01:59.1]} 33... Rxd5 {[%clk 0:00:50.6]} 34. Qxd5 {[%clk 0:02:00]} 34... g6
{[%clk 0:00:46]} 35. g3 {[%clk 0:01:57.5]} 35... h5 {[%clk 0:00:46.3]} 36. h4
{[%clk 0:01:57.6]} 36... Kg7 {[%clk 0:00:45.4]} 37. Qc4 {[%clk 0:01:54.1]} 37...
Kh7 {[%clk 0:00:39.1]} 38. Qc7 {[%clk 0:01:53.4]} 1-0

[Event "Late-Titled-Tuesday-Blitz-February-06-2024"]
[Site "Chess.com"]
[Date "2024.02.06"]
[Round "1"]
[White "Balla_Tamas"]
[Black "maciek_92"]
[Result "0-1"]
[WhiteElo "2417"]
[BlackElo "2794"]
[TimeControl "180+1"]
[EndTime "14:05:21 PST"]
[Termination "maciek_92 won by resignation"]

1. e4 {[%clk 0:03:00.9]} 1... c5 {[%clk 0:03:00.2]} 2. c3 {[%clk 0:03:00.7]}
2... Nf6 {[%clk 0:03:00.2]} 3. e5 {[%clk 0:03:00.8]} 3... Nd5 {[%clk 0:03:00.9]}
4. d4 {[%clk 0:03:01.6]} 4... cxd4 {[%clk 0:03:01.8]} 5. Nf3 {[%clk 0:03:02.2]}
5... Nc6 {[%clk 0:03:02.4]} 6. cxd4 {[%clk 0:03:02.9]} 6... d6 {[%clk 0:03:03]}
7. Bc4 {[%clk 0:03:03.6]} 7... e6 {[%clk 0:03:03.3]} 8. Qe2 {[%clk 0:03:01.9]}
8... Be7 {[%clk 0:03:03.5]} 9. O-O {[%clk 0:03:02.1]} 9... O-O {[%clk
0:03:03.5]} 10. Rd1 {[%clk 0:03:02.6]} 10... Bd7 {[%clk 0:03:02]} 11. Bxd5
{[%clk 0:03:00.6]} 11... exd5 {[%clk 0:03:02.2]} 12. Nc3 {[%clk 0:03:01.3]}
12... Be6 {[%clk 0:03:02.6]} 13. Bf4 {[%clk 0:03:00.1]} 13... dxe5 {[%clk
0:03:02]} 14. Nxe5 {[%clk 0:02:59.5]} 14... Rc8 {[%clk 0:02:59.7]} 15. Rd3
{[%clk 0:02:53.3]} 15... Bf6 {[%clk 0:02:49.2]} 16. Rad1 {[%clk 0:02:48.5]}
16... Bf5 {[%clk 0:02:45.6]} 17. Rg3 {[%clk 0:02:45.8]} 17... Re8 {[%clk
0:02:44.4]} 18. Qf3 {[%clk 0:02:34.6]} 18... Nxe5 {[%clk 0:02:18.3]} 19. dxe5
{[%clk 0:02:27.7]} 19... Bxe5 {[%clk 0:02:18.7]} 20. Bxe5 {[%clk 0:02:27.8]}
20... Rxe5 {[%clk 0:02:18.8]} 21. Rxg7+ {[%clk 0:02:09.6]} 21... Kxg7 {[%clk
0:02:16.5]} 22. Qg3+ {[%clk 0:02:10.1]} 22... Kf6 {[%clk 0:02:17.2]} 23. f4
{[%clk 0:02:00.3]} 23... Re4 {[%clk 0:01:59.7]} 24. Qg5+ {[%clk 0:01:09.2]}
24... Ke6 {[%clk 0:01:56]} 25. Nxe4 {[%clk 0:01:09.9]} 25... f6 {[%clk
0:01:47.2]} 26. Qg7 {[%clk 0:00:15]} 26... Bxe4 {[%clk 0:01:43.5]} 27. f5+
{[%clk 0:00:15.5]} 27... Bxf5 {[%clk 0:01:42.1]} 0-1

[Event "Late-Titled-Tuesday-Blitz-February-06-2024"]
[Site "Chess.com"]
[Date "2024.02.06"]
[Round "1"]
[White "bilelou"]
[Black "Eeleyah"]
[Result "1-0"]
[WhiteElo "2739"]
[BlackElo "2399"]
[TimeControl "180+1"]
[EndTime "14:05:22 PST"]
[Termination "bilelou won by resignation"]

1. e4 {[%clk 0:03:00.9]} 1... c5 {[%clk 0:02:59.7]} 2. Na3 {[%clk 0:02:59.5]}
2... Nc6 {[%clk 0:02:56.7]} 3. Bb5 {[%clk 0:02:59.7]} 3... g6 {[%clk 0:02:56.1]}
4. Bxc6 {[%clk 0:02:44]} 4... dxc6 {[%clk 0:02:57]} 5. d3 {[%clk 0:02:42.5]}
5... Bg7 {[%clk 0:02:57]} 6. h3 {[%clk 0:02:42.8]} 6... Nf6 {[%clk 0:02:55.1]}
7. Nf3 {[%clk 0:02:43.3]} 7... Nd7 {[%clk 0:02:51]} 8. O-O {[%clk 0:02:41.5]}
8... e5 {[%clk 0:02:50.5]} 9. Nc4 {[%clk 0:02:37.4]} 9... Qe7 {[%clk 0:02:50.4]}
10. a3 {[%clk 0:02:37.2]} 10... O-O {[%clk 0:02:40.6]} 11. b4 {[%clk 0:02:36.7]}
11... b6 {[%clk 0:02:36]} 12. bxc5 {[%clk 0:02:27]} 12... Nxc5 {[%clk
0:02:35.7]} 13. Bb2 {[%clk 0:02:27.3]} 13... f6 {[%clk 0:02:35.6]} 14. a4 {[%clk
0:02:26.3]} 14... Be6 {[%clk 0:02:33]} 15. Nfd2 {[%clk 0:02:25.6]} 15... Nxa4
{[%clk 0:02:16.7]} 16. Rxa4 {[%clk 0:02:16.7]} 16... b5 {[%clk 0:02:17]} 17. Ba3
{[%clk 0:01:51.6]} 17... Qd7 {[%clk 0:01:46.2]} 18. Bxf8 {[%clk 0:01:52.5]}
18... Bxf8 {[%clk 0:01:44.7]} 19. Ra6 {[%clk 0:01:47.4]} 19... bxc4 {[%clk
0:01:39.8]} 20. Nxc4 {[%clk 0:01:48.3]} 20... Qb7 {[%clk 0:01:33.2]} 21. Qa1
{[%clk 0:01:47.4]} 21... Qb5 {[%clk 0:01:31.5]} 22. Rb1 {[%clk 0:01:46]} 22...
Qc5 {[%clk 0:01:30.8]} 23. Ra5 {[%clk 0:01:42.8]} 23... Qe7 {[%clk 0:01:30.1]}
24. Qa4 {[%clk 0:01:42.1]} 24... Qc7 {[%clk 0:01:23.5]} 25. Ra6 {[%clk
0:01:40.4]} 25... Bd7 {[%clk 0:01:20.2]} 26. Qa5 {[%clk 0:01:33.9]} 26... Qxa5
{[%clk 0:01:19.5]} 27. Rxa5 {[%clk 0:01:27.3]} 27... Be6 {[%clk 0:01:03.8]} 28.
Rb7 {[%clk 0:01:23.3]} 28... Rd8 {[%clk 0:00:56.5]} 29. Ne3 {[%clk 0:01:13.5]}
29... f5 {[%clk 0:00:47.1]} 30. exf5 {[%clk 0:01:10.8]} 30... gxf5 {[%clk
0:00:47.3]} 31. Rxe5 {[%clk 0:01:10.9]} 1-0

[Event "Late-Titled-Tuesday-Blitz-February-06-2024"]
[Site "Chess.com"]
[Date "2024.02.06"]
[Round "1"]
[White "koziororo"]
[Black "Viktor_Poddubnyi"]
[Result "1-0"]
[WhiteElo "2612"]
[BlackElo "2264"]
[TimeControl "180+1"]
[EndTime "14:05:25 PST"]
[Termination "koziororo won on time"]

1. e4 {[%clk 0:03:00.9]} 1... g6 {[%clk 0:02:59.3]} 2. h4 {[%clk 0:02:59.7]}
2... Bg7 {[%clk 0:02:58.6]} 3. h5 {[%clk 0:02:55.8]} 3... d5 {[%clk 0:02:58.6]}
4. exd5 {[%clk 0:02:54.7]} 4... Qxd5 {[%clk 0:02:59.5]} 5. Nc3 {[%clk
0:02:50.3]} 5... Qa5 {[%clk 0:02:59.8]} 6. Nf3 {[%clk 0:02:49]} 6... Nc6 {[%clk
0:02:59.6]} 7. Bc4 {[%clk 0:02:47.5]} 7... Bg4 {[%clk 0:02:55.5]} 8. hxg6 {[%clk
0:02:46.8]} 8... hxg6 {[%clk 0:02:54.7]} 9. Rxh8 {[%clk 0:02:47.7]} 9... Bxh8
{[%clk 0:02:55.4]} 10. Be2 {[%clk 0:02:45.5]} 10... O-O-O {[%clk 0:02:53.3]} 11.
Ne4 {[%clk 0:02:43.2]} 11... Nf6 {[%clk 0:02:29.8]} 12. Nxf6 {[%clk 0:02:40.5]}
12... Bxf6 {[%clk 0:02:17.1]} 13. c3 {[%clk 0:02:19.9]} 13... e5 {[%clk
0:01:13.7]} 14. Ng1 {[%clk 0:02:02.6]} 14... Bf5 {[%clk 0:00:51.5]} 15. Qb3
{[%clk 0:01:59.2]} 15... Rd7 {[%clk 0:00:38]} 16. Qb5 {[%clk 0:01:56.7]} 16...
e4 {[%clk 0:00:26.5]} 17. Qxa5 {[%clk 0:01:55]} 17... Nxa5 {[%clk 0:00:27.4]}
18. b3 {[%clk 0:01:51.7]} 18... Nc6 {[%clk 0:00:24.3]} 19. Bb2 {[%clk
0:01:50.2]} 19... Ne5 {[%clk 0:00:23.2]} 20. O-O-O {[%clk 0:01:47.3]} 20... Nd3+
{[%clk 0:00:23.2]} 21. Bxd3 {[%clk 0:01:45.7]} 21... Rxd3 {[%clk 0:00:24.1]} 22.
Re1 {[%clk 0:01:41.9]} 22... Bg5 {[%clk 0:00:18.7]} 23. Re2 {[%clk 0:01:41.6]}
23... Bg4 {[%clk 0:00:15.3]} 24. Rxe4 {[%clk 0:01:41.5]} 1-0

[Event "Late-Titled-Tuesday-Blitz-February-06-2024"]
[Site "Chess.com"]
[Date "2024.02.06"]
[Round "1"]
[White "BogdanDeac"]
[Black "Vasily85"]
[Result "1-0"]
[WhiteElo "2993"]
[BlackElo "2514"]
[TimeControl "180+1"]
[EndTime "14:05:26 PST"]
[Termination "BogdanDeac won by resignation"]

1. b3 {[%clk 0:03:00.9]} 1... e5 {[%clk 0:02:31.9]} 2. Bb2 {[%clk 0:02:59.5]}
2... Nc6 {[%clk 0:02:31.5]} 3. Nf3 {[%clk 0:02:59.8]} 3... e4 {[%clk 0:02:25]}
4. Nd4 {[%clk 0:02:59.7]} 4... Nxd4 {[%clk 0:02:24.7]} 5. Bxd4 {[%clk
0:03:00.6]} 5... Nf6 {[%clk 0:02:23.5]} 6. e3 {[%clk 0:02:59.5]} 6... d5 {[%clk
0:02:23.6]} 7. c4 {[%clk 0:02:59.1]} 7... c6 {[%clk 0:02:23]} 8. Nc3 {[%clk
0:02:57.1]} 8... Be7 {[%clk 0:02:18.7]} 9. cxd5 {[%clk 0:02:56.7]} 9... cxd5
{[%clk 0:02:19.6]} 10. f3 {[%clk 0:02:53.2]} 10... O-O {[%clk 0:02:16.8]} 11.
Be2 {[%clk 0:02:52.5]} 11... Bf5 {[%clk 0:02:06.2]} 12. O-O {[%clk 0:02:51.8]}
12... exf3 {[%clk 0:01:54.5]} 13. Bxf3 {[%clk 0:02:51.6]} 13... Ne4 {[%clk
0:01:51.4]} 14. Bxe4 {[%clk 0:02:48.9]} 14... Bxe4 {[%clk 0:01:50.8]} 15. Nxe4
{[%clk 0:02:48.9]} 15... dxe4 {[%clk 0:01:51.1]} 16. Qg4 {[%clk 0:02:49.5]}
16... f6 {[%clk 0:01:44.9]} 17. Qxe4 {[%clk 0:02:47.9]} 17... Qd7 {[%clk
0:01:45.2]} 18. Qf5 {[%clk 0:02:47.7]} 18... Rfd8 {[%clk 0:01:38.7]} 19. Qxd7
{[%clk 0:02:46.5]} 19... Rxd7 {[%clk 0:01:39.6]} 20. Rac1 {[%clk 0:02:46.1]}
20... Rad8 {[%clk 0:01:32]} 21. Kf2 {[%clk 0:02:43.7]} 21... b6 {[%clk
0:01:30.9]} 22. Rc2 {[%clk 0:02:40.1]} 22... Bd6 {[%clk 0:01:08.8]} 23. h3
{[%clk 0:02:29]} 23... Kf7 {[%clk 0:01:07.5]} 24. Ke2 {[%clk 0:02:28.4]} 24...
Ke6 {[%clk 0:01:06.3]} 25. g4 {[%clk 0:02:27.6]} 25... b5 {[%clk 0:01:01.8]} 26.
Rf5 {[%clk 0:02:22]} 26... Be5 {[%clk 0:00:55.5]} 27. Bxe5 {[%clk 0:02:14.9]}
27... fxe5 {[%clk 0:00:56.4]} 28. Rf1 {[%clk 0:02:15.5]} 28... Rd6 {[%clk
0:00:51.3]} 29. h4 {[%clk 0:02:12.1]} 29... R8d7 {[%clk 0:00:48.6]} 30. Rf8
{[%clk 0:02:09.4]} 30... h6 {[%clk 0:00:34.6]} 31. Rfc8 {[%clk 0:02:01.7]} 31...
Ke7 {[%clk 0:00:28.1]} 32. R8c5 {[%clk 0:02:00.9]} 32... Rd5 {[%clk 0:00:26.2]}
33. Rxd5 {[%clk 0:02:01]} 33... Rxd5 {[%clk 0:00:27.1]} 34. Rc7+ {[%clk
0:02:01.3]} 34... Rd7 {[%clk 0:00:27.1]} 35. Rxd7+ {[%clk 0:02:01.1]} 35... Kxd7
{[%clk 0:00:28]} 36. Kd3 {[%clk 0:02:00.7]} 36... Kd6 {[%clk 0:00:28.1]} 37. Ke4
{[%clk 0:02:00.4]} 37... Ke6 {[%clk 0:00:28.6]} 38. b4 {[%clk 0:01:56.4]} 38...
a6 {[%clk 0:00:26.7]} 39. d4 {[%clk 0:01:56.7]} 1-0

[Event "Late-Titled-Tuesday-Blitz-February-06-2024"]
[Site "Chess.com"]
[Date "2024.02.06"]
[Round "1"]
[White "DanielDardha2005"]
[Black "tolimachess"]
[Result "1-0"]
[WhiteElo "2900"]
[BlackElo "2482"]
[TimeControl "180+1"]
[EndTime "14:05:26 PST"]
[Termination "DanielDardha2005 won by checkmate"]

1. e4 {[%clk 0:03:00.9]} 1... c6 {[%clk 0:02:58.9]} 2. Nf3 {[%clk 0:02:54.6]}
2... d5 {[%clk 0:02:59.8]} 3. d3 {[%clk 0:02:54.5]} 3... Bg4 {[%clk 0:02:42.4]}
4. h3 {[%clk 0:02:52.3]} 4... Bh5 {[%clk 0:02:37.8]} 5. g4 {[%clk 0:02:50.7]}
5... Bg6 {[%clk 0:02:37.7]} 6. Qe2 {[%clk 0:02:51.4]} 6... dxe4 {[%clk
0:02:36.6]} 7. dxe4 {[%clk 0:02:51.8]} 7... Nd7 {[%clk 0:02:36.9]} 8. Nbd2
{[%clk 0:02:43.7]} 8... Ngf6 {[%clk 0:02:31.6]} 9. e5 {[%clk 0:02:39.5]} 9...
Nd5 {[%clk 0:02:30.6]} 10. e6 {[%clk 0:02:36.6]} 10... fxe6 {[%clk 0:02:27.2]}
11. Nc4 {[%clk 0:02:36.2]} 11... Qc7 {[%clk 0:02:11.5]} 12. Nfe5 {[%clk
0:02:25.9]} 12... Nxe5 {[%clk 0:01:50.3]} 13. Nxe5 {[%clk 0:02:26.8]} 13... Bf7
{[%clk 0:01:33.3]} 14. Bg2 {[%clk 0:02:22.8]} 14... g6 {[%clk 0:01:28.3]} 15. c4
{[%clk 0:02:13.4]} 15... Nb4 {[%clk 0:01:04.4]} 16. O-O {[%clk 0:02:10.4]} 16...
Bg7 {[%clk 0:01:03.9]} 17. Bf4 {[%clk 0:02:09.6]} 17... Qb6 {[%clk 0:00:50.8]}
18. Rfe1 {[%clk 0:01:48.5]} 18... c5 {[%clk 0:00:22]} 19. a3 {[%clk 0:01:20.8]}
19... Nc6 {[%clk 0:00:20.5]} 20. Bxc6+ {[%clk 0:01:16.2]} 20... bxc6 {[%clk
0:00:20.5]} 21. Nxf7 {[%clk 0:01:16.5]} 21... Kxf7 {[%clk 0:00:20.3]} 22. Qxe6+
{[%clk 0:01:16.4]} 22... Kf8 {[%clk 0:00:20.9]} 23. Qxe7+ {[%clk 0:01:17.2]}
23... Kg8 {[%clk 0:00:21.4]} 24. Qe6+ {[%clk 0:01:18.1]} 24... Kf8 {[%clk
0:00:21.7]} 25. Bd6# {[%clk 0:01:19]} 1-0

[Event "Late-Titled-Tuesday-Blitz-February-06-2024"]
[Site "Chess.com"]
[Date "2024.02.06"]
[Round "1"]
[White "topce"]
[Black "Druid24"]
[Result "1-0"]
[WhiteElo "2390"]
[BlackElo "2670"]
[TimeControl "180+1"]
[EndTime "14:05:31 PST"]
[Termination "topce won by resignation"]

1. c4 {[%clk 0:02:59.8]} 1... e6 {[%clk 0:02:57.8]} 2. Nc3 {[%clk 0:03:00.1]}
2... Bb4 {[%clk 0:02:57.6]} 3. Qc2 {[%clk 0:02:58.6]} 3... Ne7 {[%clk
0:02:57.6]} 4. a3 {[%clk 0:02:58]} 4... Bxc3 {[%clk 0:02:57.5]} 5. Qxc3 {[%clk
0:02:58.9]} 5... O-O {[%clk 0:02:57.7]} 6. b4 {[%clk 0:02:58.5]} 6... d5 {[%clk
0:02:58.1]} 7. Bb2 {[%clk 0:02:58.2]} 7... f6 {[%clk 0:02:57.2]} 8. cxd5 {[%clk
0:02:51.9]} 8... Nxd5 {[%clk 0:02:54.9]} 9. Qc2 {[%clk 0:02:52]} 9... Nc6 {[%clk
0:02:55.4]} 10. e3 {[%clk 0:02:51.6]} 10... e5 {[%clk 0:02:55.6]} 11. Bc4 {[%clk
0:02:51.1]} 11... Be6 {[%clk 0:02:55.9]} 12. Nf3 {[%clk 0:02:49.8]} 12... Nce7
{[%clk 0:02:54.8]} 13. O-O {[%clk 0:02:49.1]} 13... Kh8 {[%clk 0:02:54.6]} 14.
d4 {[%clk 0:02:36.5]} 14... exd4 {[%clk 0:02:54.1]} 15. Nxd4 {[%clk 0:02:36.3]}
15... Bg8 {[%clk 0:02:54.7]} 16. Rac1 {[%clk 0:02:32.3]} 16... c6 {[%clk
0:02:54.8]} 17. Ba2 {[%clk 0:02:31.8]} 17... Qd7 {[%clk 0:02:54.9]} 18. Bb1
{[%clk 0:02:31.3]} 18... Ng6 {[%clk 0:02:53.7]} 19. Qf5 {[%clk 0:02:28.8]} 19...
Qe7 {[%clk 0:02:52.1]} 20. Qh5 {[%clk 0:02:27.9]} 20... Qf7 {[%clk 0:02:50.3]}
21. Nf5 {[%clk 0:02:14.1]} 21... Rad8 {[%clk 0:02:48.3]} 22. Rfd1 {[%clk
0:02:12.3]} 22... Qe8 {[%clk 0:02:41.6]} 23. Qf3 {[%clk 0:01:45.3]} 23... Ne5
{[%clk 0:02:34.6]} 24. Qg3 {[%clk 0:01:40.2]} 24... g6 {[%clk 0:02:34]} 25. Nd4
{[%clk 0:01:37.1]} 25... Qe7 {[%clk 0:02:26.6]} 26. Ne2 {[%clk 0:01:32.3]} 26...
Rfe8 {[%clk 0:02:25.8]} 27. e4 {[%clk 0:01:28.3]} 27... Nc7 {[%clk 0:02:25.5]}
28. Nf4 {[%clk 0:01:28.3]} 28... Rxd1+ {[%clk 0:02:23.8]} 29. Rxd1 {[%clk
0:01:27.9]} 29... Rd8 {[%clk 0:02:23.7]} 30. Rc1 {[%clk 0:01:20]} 30... Rd2
{[%clk 0:02:23.1]} 31. Bc3 {[%clk 0:01:15]} 31... Rd6 {[%clk 0:02:22]} 32. h4
{[%clk 0:01:14.6]} 32... Nb5 {[%clk 0:02:22]} 33. Bb2 {[%clk 0:01:13]} 33... Nd4
{[%clk 0:02:22.5]} 34. Kh1 {[%clk 0:00:53.6]} 34... Nb3 {[%clk 0:02:20]} 35. Re1
{[%clk 0:00:44.9]} 35... Nd2 {[%clk 0:02:19.3]} 36. Qh2 {[%clk 0:00:37.1]} 36...
Nxb1 {[%clk 0:02:18.1]} 37. Rxb1 {[%clk 0:00:36.3]} 37... Rd2 {[%clk 0:02:18.3]}
38. h5 {[%clk 0:00:35.8]} 38... g5 {[%clk 0:02:17.7]} 39. Bxe5 {[%clk
0:00:33.6]} 39... Qxe5 {[%clk 0:02:14.5]} 40. Nh3 {[%clk 0:00:17.8]} 40... Qd4
{[%clk 0:02:11.8]} 41. h6 {[%clk 0:00:15.1]} 41... Rd1+ {[%clk 0:02:07.8]} 42.
Rxd1 {[%clk 0:00:14.4]} 42... Qxd1+ {[%clk 0:02:08.7]} 43. Ng1 {[%clk
0:00:14.8]} 43... Qh5 {[%clk 0:02:09.3]} 44. Qxh5 {[%clk 0:00:13.4]} 1-0

[Event "Late-Titled-Tuesday-Blitz-February-06-2024"]
[Site "Chess.com"]
[Date "2024.02.06"]
[Round "1"]
[White "xakevicius91"]
[Black "Hooded_Old_Man"]
[Result "1-0"]
[WhiteElo "2608"]
[BlackElo "2241"]
[TimeControl "180+1"]
[EndTime "14:05:34 PST"]
[Termination "xakevicius91 won by checkmate"]

1. e4 {[%clk 0:02:59.8]} 1... d6 {[%clk 0:02:56.7]} 2. d4 {[%clk 0:02:58.6]}
2... Nf6 {[%clk 0:02:56.9]} 3. Nc3 {[%clk 0:02:58]} 3... e5 {[%clk 0:02:57.5]}
4. Nge2 {[%clk 0:02:56.2]} 4... Nc6 {[%clk 0:02:55]} 5. h3 {[%clk 0:02:56.1]}
5... Be7 {[%clk 0:02:50.4]} 6. g4 {[%clk 0:02:55.8]} 6... exd4 {[%clk
0:02:48.3]} 7. Nxd4 {[%clk 0:02:55.8]} 7... Nxd4 {[%clk 0:02:48.9]} 8. Qxd4
{[%clk 0:02:56.5]} 8... O-O {[%clk 0:02:49.3]} 9. Bg2 {[%clk 0:02:56.7]} 9...
Be6 {[%clk 0:02:45.9]} 10. O-O {[%clk 0:02:52.5]} 10... Nd7 {[%clk 0:02:30.6]}
11. Be3 {[%clk 0:02:49.9]} 11... Bf6 {[%clk 0:02:30.6]} 12. Qd2 {[%clk
0:02:48.4]} 12... Ne5 {[%clk 0:02:27.6]} 13. b3 {[%clk 0:02:42.1]} 13... g5
{[%clk 0:02:19.4]} 14. Rad1 {[%clk 0:02:36.8]} 14... Ng6 {[%clk 0:02:19.3]} 15.
Ne2 {[%clk 0:02:37.3]} 15... h6 {[%clk 0:02:13.1]} 16. f4 {[%clk 0:02:32.9]}
16... gxf4 {[%clk 0:02:12.7]} 17. Nxf4 {[%clk 0:02:33.2]} 17... Nxf4 {[%clk
0:02:12.9]} 18. Bxf4 {[%clk 0:02:34.1]} 18... Bg5 {[%clk 0:02:12.6]} 19. Rf2
{[%clk 0:02:24.9]} 19... Bxf4 {[%clk 0:02:04.4]} 20. Qxf4 {[%clk 0:02:22.2]}
20... Qg5 {[%clk 0:02:04.7]} 21. Qg3 {[%clk 0:02:15.4]} 21... a5 {[%clk
0:02:01.9]} 22. a4 {[%clk 0:02:14.8]} 22... Rae8 {[%clk 0:01:48.9]} 23. Qf4
{[%clk 0:02:13]} 23... Qxf4 {[%clk 0:01:46.9]} 24. Rxf4 {[%clk 0:02:13.9]} 24...
f6 {[%clk 0:01:45.7]} 25. Kf2 {[%clk 0:02:14.1]} 25... Kg7 {[%clk 0:01:45.7]}
26. Rf3 {[%clk 0:02:07.7]} 26... Bd7 {[%clk 0:01:45.2]} 27. c4 {[%clk
0:02:04.5]} 27... Rxe4 {[%clk 0:01:41.5]} 28. Rc3 {[%clk 0:01:57.1]} 28... Re5
{[%clk 0:01:27.1]} 29. Kg3 {[%clk 0:01:34.8]} 29... Bc6 {[%clk 0:01:24.1]} 30.
Bxc6 {[%clk 0:01:33]} 30... bxc6 {[%clk 0:01:25]} 31. Rf1 {[%clk 0:01:29.6]}
31... f5 {[%clk 0:01:24.6]} 32. Rcf3 {[%clk 0:01:29.7]} 32... Kg6 {[%clk
0:01:18]} 33. h4 {[%clk 0:01:29.3]} 33... c5 {[%clk 0:01:15.6]} 34. R1f2 {[%clk
0:01:24.1]} 34... h5 {[%clk 0:01:12.6]} 35. g5 {[%clk 0:01:20]} 35... Re4 {[%clk
0:01:09.7]} 36. Kh3 {[%clk 0:01:19.2]} 36... f4 {[%clk 0:01:09]} 37. Kg2 {[%clk
0:01:17.4]} 37... Kf5 {[%clk 0:01:08.9]} 38. Rd2 {[%clk 0:01:17.3]} 38... Rfe8
{[%clk 0:01:04.8]} 39. Rdf2 {[%clk 0:01:13.5]} 39... Kg4 {[%clk 0:01:03.5]} 40.
Kh2 {[%clk 0:01:09.3]} 40... Re2 {[%clk 0:00:59.2]} 41. Rxf4# {[%clk 0:01:09.2]}
1-0

[Event "Late-Titled-Tuesday-Blitz-February-06-2024"]
[Site "Chess.com"]
[Date "2024.02.06"]
[Round "1"]
[White "rdarruda"]
[Black "gurudub"]
[Result "0-1"]
[WhiteElo "2548"]
[BlackElo "2104"]
[TimeControl "180+1"]
[EndTime "14:05:37 PST"]
[Termination "gurudub won by resignation"]

1. d4 {[%clk 0:02:59.4]} 1... Nf6 {[%clk 0:03:00.2]} 2. Nf3 {[%clk 0:02:58.9]}
2... g6 {[%clk 0:02:59.8]} 3. Nc3 {[%clk 0:02:57.5]} 3... d5 {[%clk 0:02:54.6]}
4. Bg5 {[%clk 0:02:57]} 4... Bg7 {[%clk 0:02:54.8]} 5. Bxf6 {[%clk 0:02:56.8]}
5... Bxf6 {[%clk 0:02:54.2]} 6. e4 {[%clk 0:02:57.3]} 6... dxe4 {[%clk
0:02:47.6]} 7. Nxe4 {[%clk 0:02:58.2]} 7... Bg7 {[%clk 0:02:48.1]} 8. Bc4 {[%clk
0:02:58]} 8... O-O {[%clk 0:02:48.3]} 9. Qe2 {[%clk 0:02:57.3]} 9... Bg4 {[%clk
0:02:27.7]} 10. Rd1 {[%clk 0:02:56.3]} 10... Nc6 {[%clk 0:02:16.5]} 11. c3
{[%clk 0:02:52.2]} 11... e5 {[%clk 0:01:48.5]} 12. dxe5 {[%clk 0:02:48.7]} 12...
Qe7 {[%clk 0:01:47.7]} 13. Nf6+ {[%clk 0:02:39.5]} 13... Bxf6 {[%clk 0:01:45.3]}
14. exf6 {[%clk 0:02:40.4]} 14... Qxf6 {[%clk 0:01:43.9]} 15. O-O {[%clk
0:02:38.7]} 15... Rfe8 {[%clk 0:01:39.5]} 16. Qc2 {[%clk 0:02:14.7]} 16... Bxf3
{[%clk 0:01:21.3]} 17. gxf3 {[%clk 0:02:15.6]} 17... Ne5 {[%clk 0:01:21.6]} 18.
Bd5 {[%clk 0:02:09]} 18... Nxf3+ {[%clk 0:01:16.3]} 19. Bxf3 {[%clk 0:02:09.9]}
19... Qxf3 {[%clk 0:01:16.4]} 20. Rd4 {[%clk 0:02:00.3]} 20... Re5 {[%clk
0:01:03.2]} 21. h4 {[%clk 0:01:59.5]} 21... c5 {[%clk 0:00:51.3]} 22. Qd1 {[%clk
0:01:46.6]} 22... Qf6 {[%clk 0:00:33.4]} 23. Rg4 {[%clk 0:01:08.9]} 23... h5
{[%clk 0:00:33.9]} 24. Rg3 {[%clk 0:01:07.8]} 24... Qxh4 {[%clk 0:00:34.4]} 25.
Qd7 {[%clk 0:01:07.4]} 25... Qe7 {[%clk 0:00:28.6]} 26. Qd5 {[%clk 0:01:05.6]}
26... Rxd5 {[%clk 0:00:28.2]} 0-1